fUSD/lending_fUSD_20250419
["ID","MTS","AMOUNT","RATE_DAILY","PERIOD"]
[358399241,1745067068103,-5723.68142952,0.00047929,16]
[358399242,1745067068112,-874.89358976,0.00047929,2]
[358399243,1745067068121,-44972.0772553,0.00047929,7]
[358399244,1745067068130,-12159.17516447,0.00047929,2]
[358399245,1745067068139,-1107.19629129,0.00047929,2]
[358399246,1745067068150,-161.08765886,0.00047929,10]
[358399247,1745067068159,-20056.26022125,0.00047929,2]
[358399248,1745067068169,-499.20168083,0.00047929,2]
[358399249,1745067068178,-150.0,0.00047966,7]
[358399250,1745067068187,-4887.584262,0.00048,2]
[358399251,1745067068197,-22775.26853515,0.00048,2]
[358399252,1745067068206,-200.0,0.00048167,5]
[358399253,1745067068216,-700.0,0.0004817,3]
[358399254,1745067068225,-200.0,0.00048177,7]
[358399255,1745067068235,-200.0,0.00048191,7]
[358399256,1745067068245,-151.0,0.00048193,14]
[358399257,1745067068254,-151.0,0.00048193,14]
[358399258,1745067068264,-151.0,0.00048193,14]
[358399259,1745067068274,-203.0,0.0004845,30]
[358399260,1745067068283,-887.0,0.00048531,10]
[358399261,1745067068292,-200.0,0.00048659,7]
[358399262,1745067068302,-200.0,0.00048673,7]
[358399263,1745067068312,-151.466761,0.00048673,120]
[358399264,1745067068321,-159.554765,0.00048673,120]
[358399265,1745067068331,-160.787794,0.00048673,120]
[358399266,1745067068341,-151.466761,0.000487,60]
[358399267,1745067068350,-152.0,0.00048717,13]
[358399268,1745067068360,-229.60787045,0.00048717,5]
[358399269,1745067068370,-3162.0,0.0004877,5]
[358399270,1745067068380,-151.466761,0.0004895,60]
[358399271,1745067068390,-150.0,0.00049,2]
[358399272,1745067068400,-1050.0,0.00049,2]
[358399273,1745067068409,-200.0,0.00049145,7]
[358399274,1745067068419,-151.466761,0.000492,60]
[358399275,1745067068429,-159.554765,0.000492,60]
[358399276,1745067068438,-160.787794,0.000492,60]
[358399277,1745067068448,-512.977282,0.00049315,10]
[358399278,1745067068457,-206.95,0.00049315,2]
[358399279,1745067068467,-2961.52,0.000494,60]
[358399280,1745067068476,-151.466761,0.0004945,60]
[358399281,1745067068487,-159.554765,0.0004945,60]
[358399282,1745067068497,-160.787794,0.0004945,60]
[358399283,1745067068506,-3000.0,0.000495,2]
[358399284,1745067068515,-200.0,0.00049637,7]
[358399285,1745067068524,-151.466761,0.000497,60]
[358399286,1745067068533,-159.554765,0.000497,60]
[358399287,1745067068543,-160.787794,0.000497,60]
[358399288,1745067068552,-182.03789906,0.00049712,10]
[358399289,1745067068562,-151.466761,0.00049897,120]
[358399290,1745067068571,-159.554765,0.00049897,120]
[358399291,1745067068581,-160.787794,0.00049897,120]
[358399292,1745067068590,-42813.42872961,0.0004999,2]
[358399293,1745067068602,-1138.43844628,0.0005,2]
[358399294,1745067068612,-1518.40286714,0.0005,2]
[358399295,1745067068622,-1000.0,0.0005,3]
[358399296,1745067068631,-50000.0,0.0005,15]
[358399297,1745067068642,-4427.57573005,0.0005,2]
[358399298,1745067068651,-250.0,0.0005,14]
[358399299,1745067068661,-250.0,0.0005,5]
[358399300,1745067068673,-1134.35,0.00050007,2]
[358399301,1745067068683,-203.0,0.0005003,30]
[358399302,1745067068694,-436.47653885,0.000501,7]
[358399303,1745067068705,-255.51388353,0.00050601,14]
[358399304,1745067068715,-307.4738864,0.00051,2]
[358399305,1745067068726,-250.0,0.00051,5]
[358399306,1745067068735,-1100.0,0.00051,2]
[358399307,1745067068745,-2961.52,0.00051,60]
[358399308,1745067068754,-203.0,0.0005162,30]
[358399309,1745067068763,-4246.7746037,0.00052,5]
[358399310,1745067068773,-250.0,0.00052,5]
[358399311,1745067068783,-2000.0,0.00052,30]
[358399312,1745067068792,-1134.35,0.00052271,2]
[358399313,1745067068802,-4427.0,0.0005293,10]
[358399314,1745067068811,-576.24099894,0.00053,2]
[358399315,1745067068820,-250.0,0.00053,5]
[358399316,1745067068830,-40023.29430236,0.00053,5]
[358399317,1745067068839,-1150.0,0.00053,2]
[358399318,1745067068849,-151.0,0.00053,120]
[358399319,1745067068858,-1047.64,0.000531,14]
[358399320,1745067068867,-203.0,0.0005321,30]
[358399321,1745067068876,-446.68342521,0.0005331,2]
[358399322,1745067068886,-2961.52,0.000534,60]
[358399323,1745067068895,-150.0,0.00053762,7]
[358399324,1745067068904,-299.87721075,0.00053956,7]
[358399325,1745067068914,-250.0,0.00054,5]
[358399326,1745067068923,-15000.0,0.00054,2]
[358399327,1745067068933,-180.0,0.00054,90]
[358399328,1745067068942,-154.03711879,0.00054038,7]
[358399329,1745067068951,-500.0,0.00054219,2]
[358399330,1745067068961,-500.0,0.00054219,2]
[358399331,1745067068970,-500.0,0.00054219,2]
[358399332,1745067068979,-500.0,0.00054219,2]
[358399333,1745067068988,-500.0,0.00054219,2]
[358399334,1745067068997,-412.86120572,0.00054219,2]
[358399335,1745067069007,-784.07399251,0.0005425,2]
[358399336,1745067069016,-2251.19045397,0.00054455,30]
[358399337,1745067069025,-500.0,0.00054495,2]
[358399338,1745067069035,-500.0,0.00054495,2]
[358399339,1745067069046,-500.0,0.00054495,2]
[358399340,1745067069055,-500.0,0.00054495,2]
[358399341,1745067069066,-500.0,0.00054495,2]
[358399342,1745067069075,-500.0,0.00054495,2]
[358399343,1745067069085,-500.0,0.00054495,2]
[358399344,1745067069095,-500.0,0.00054495,2]
[358399345,1745067069105,-500.0,0.00054495,2]
[358399346,1745067069116,-500.0,0.00054495,2]
[358399347,1745067069126,-500.0,0.00054495,2]
[358399348,1745067069136,-500.0,0.00054495,2]
[358399349,1745067069146,-500.0,0.00054495,2]
[358399350,1745067069155,-500.0,0.00054495,2]
[358399351,1745067069164,-555.67751524,0.00054495,2]
[358399352,1745067069175,-2251.19045397,0.00054498,30]
[358399353,1745067069184,-1547.503781,0.000545,2]
[358399354,1745067069194,-2000.0,0.00054521,3]
[358399355,1745067069204,-2002.6867,0.00054521,3]
[358399356,1745067069214,-152.5741,0.00054521,3]
[358399357,1745067069224,-2251.19045397,0.00054529,30]
[358399358,1745067069233,-1134.35,0.00054534,2]
[358399359,1745067069242,-2251.19045397,0.00054559,30]
[358399360,1745067069252,-2251.19045397,0.00054625,30]
[358399361,1745067069261,-400.0,0.0005477,7]
[358399362,1745067069270,-700.0,0.0005477,7]
[358399363,1745067069280,-400.0,0.0005477,7]
[358399364,1745067069288,-700.0,0.0005477,7]
[358399365,1745067069298,-400.0,0.0005477,7]
[358399366,1745067069307,-700.0,0.0005477,7]
[358399367,1745067069316,-705.3532014,0.0005477,7]
[358399368,1745067069325,-700.0,0.0005477,7]
[358399369,1745067069334,-700.0,0.0005477,7]
[358399370,1745067069344,-203.0,0.0005479,30]
[358399371,1745067069353,-150.0,0.00054792,7]
[358399372,1745067069362,-500.0,0.00054794,2]
[358399373,1745067069372,-1000.0,0.00054794,2]
[358399374,1745067069381,-1000.0,0.00054794,2]
[358399375,1745067069390,-1000.0,0.00054794,2]
[358399376,1745067069399,-1000.0,0.00054794,2]
[358399377,1745067069408,-1000.0,0.00054794,2]
[358399378,1745067069417,-1000.0,0.00054794,2]
[358399379,1745067069427,-1000.0,0.00054794,2]
[358399380,1745067069436,-1004.98851559,0.00054794,2]
[358399381,1745067069445,-500.0,0.00054794,2]
[358399382,1745067069455,-200.0,0.00054794,15]
[358399383,1745067069465,-1000.0,0.00054794,35]
[358399384,1745067069474,-2116.35,0.00054794,12]
[358399385,1745067069483,-209.52815445,0.00054794,120]
[358399386,1745067069493,-839.05,0.00054794,120]
[358399387,1745067069503,-500.0,0.00054794,120]
[358399388,1745067069512,-574.5,0.00054794,120]
[358399389,1745067069522,-500.0,0.00054794,120]
[358399390,1745067069532,-500.0,0.00054794,120]
[358399391,1745067069541,-202.05540472,0.00054794,120]
[358399392,1745067069551,-500.0,0.00054794,120]
[358399393,1745067069560,-500.0,0.00054794,120]
[358399394,1745067069569,-500.0,0.00054794,120]
[358399395,1745067069579,-500.0,0.00054794,120]
[358399396,1745067069588,-163.95766971,0.00054794,2]
[358399397,1745067069596,-100793.89,0.00054794,120]
[358399398,1745067069608,-184.30970935,0.00054794,120]
[358399399,1745067069617,-500.0,0.00054794,2]
[358399400,1745067069627,-12120.55,0.00054794,2]
[358399401,1745067069637,-500.0,0.00054794,120]
[358399402,1745067069647,-500.0,0.00054794,120]
[358399403,1745067069656,-500.0,0.00054794,120]
[358399404,1745067069665,-500.0,0.00054794,120]
[358399405,1745067069675,-500.0,0.00054794,120]
[358399406,1745067069685,-452.42787621,0.00054794,120]
[358399407,1745067069695,-500.0,0.00054794,2]
[358399408,1745067069704,-500.0,0.00054794,2]
[358399409,1745067069714,-500.0,0.00054794,2]
[358399410,1745067069723,-500.0,0.00054794,2]
[358399411,1745067069732,-502.32595119,0.00054794,2]
[358399412,1745067069741,-593.97,0.00054794,120]
[358399413,1745067069752,-805.36,0.00054794,2]
[358399414,1745067069761,-500.0,0.00054795,15]
[358399415,1745067069770,-1069.0,0.00054795,120]
[358399416,1745067069780,-150.0,0.00054795,120]
[358399417,1745067069788,-200.0,0.00054795,120]
[358399418,1745067069798,-214.02184607,0.00054795,120]
[358399419,1745067069808,-446.43780114,0.00054795,120]
[358399420,1745067069817,-1108.09,0.00054795,120]
[358399421,1745067069826,-1098.16,0.00054795,120]
[358399422,1745067069835,-7132.2940662,0.00054798,2]
[358399423,1745067069844,-5827.5192802,0.00054798,2]
[358399424,1745067069854,-4522.7444943,0.00054798,2]
[358399425,1745067069862,-3217.9697083,0.00054798,2]
[358399426,1745067069871,-1913.1949223,0.00054798,2]
[358399427,1745067069880,-608.4201363,0.00054798,2]
[358399428,1745067069890,-115463.2472916,0.00054798,2]
[358399429,1745067069899,-94348.678435,0.00054798,2]
[358399430,1745067069908,-73234.1095784,0.00054798,2]
[358399431,1745067069918,-52119.5407218,0.00054798,2]
[358399432,1745067069927,-31004.9718652,0.00054798,2]
[358399433,1745067069936,-9890.4030086,0.00054798,2]
[358399434,1745067069945,-7200.0,0.000548,120]
[358399435,1745067069957,-22502.12385457,0.000548,120]
[358399436,1745067069968,-157.37083469,0.000548,120]
[358399437,1745067069978,-1327.88573198,0.000548,120]
[358399438,1745067069989,-2961.52,0.000548,60]
[358399439,1745067069999,-1646.5026316,0.00054951,2]
[358399440,1745067070008,-615.00058622,0.00054989,120]
[358399441,1745067070017,-615.00058622,0.00054989,120]
[358399442,1745067070027,-615.00058622,0.00054989,120]
[358399443,1745067070134,-375.92994642,0.00055,2]
[358399444,1745067070143,-250.0,0.00055,5]
[358399445,1745067070153,-183.703084,0.00055,120]
[358399446,1745067070162,-202.0,0.00055,2]
[358399447,1745067070171,-1200.0,0.00055,2]
[358399448,1745067070181,-178.04034395,0.00055,120]
[358399449,1745067070190,-2700.0,0.00055056,120]
[358399450,1745067070199,-150.0,0.00055245,120]
[358399451,1745067070208,-800.0,0.00055317,120]
[358399452,1745067070217,-150.0,0.00055332,120]
[358399453,1745067070227,-500.0,0.00055342,2]
[358399454,1745067070236,-500.0,0.00055342,120]
[358399455,1745067070246,-500.0,0.00055342,120]
[358399456,1745067070255,-506.85001329,0.00055342,120]
[358399457,1745067070264,-500.0,0.00055342,120]
[358399458,1745067070274,-500.0,0.00055342,120]
[358399459,1745067070283,-500.0,0.00055342,120]
[358399460,1745067070292,-500.0,0.00055342,120]
[358399461,1745067070301,-500.0,0.00055342,120]
[358399462,1745067070311,-500.0,0.00055342,120]
[358399463,1745067070320,-500.0,0.00055342,120]
[358399464,1745067070330,-500.0,0.00055342,120]
[358399465,1745067070339,-500.0,0.00055342,120]
[358399466,1745067070348,-697.66,0.00055342,120]
[358399467,1745067070358,-500.0,0.00055342,120]
[358399468,1745067070367,-500.0,0.00055342,120]
[358399469,1745067070376,-500.0,0.00055342,120]
[358399470,1745067070386,-500.0,0.00055342,120]
[358399471,1745067070395,-1104.31,0.00055342,120]
[358399472,1745067070405,-500.0,0.00055342,2]
[358399473,1745067070415,-200.0,0.00055342,15]
[358399474,1745067070424,-1000.0,0.00055342,35]
[358399475,1745067070434,-2116.35,0.00055342,12]
[358399476,1745067070443,-839.05,0.00055342,120]
[358399477,1745067070453,-398.88595494,0.00055342,120]
[358399478,1745067070464,-574.5,0.00055342,120]
[358399479,1745067070473,-500.0,0.00055342,120]
[358399480,1745067070483,-300.016117,0.00055342,120]
[358399481,1745067070492,-548.60744132,0.00055342,120]
[358399482,1745067070503,-500.0,0.00055342,120]
[358399483,1745067070512,-158.37725288,0.00055342,120]
[358399484,1745067070522,-151.0,0.00055342,120]
[358399485,1745067070532,-500.0,0.00055342,120]
[358399486,1745067070541,-500.0,0.00055342,120]
[358399487,1745067070550,-100793.89,0.00055342,120]
[358399488,1745067070559,-151.0,0.00055342,120]
[358399489,1745067070568,-500.0,0.00055342,2]
[358399490,1745067070577,-12120.55,0.00055342,2]
[358399491,1745067070586,-164.233014,0.00055342,120]
[358399492,1745067070596,-151.0,0.00055342,120]
[358399493,1745067070609,-500.0,0.00055342,120]
[358399494,1745067070618,-500.0,0.00055342,120]
[358399495,1745067070627,-500.0,0.00055342,120]
[358399496,1745067070636,-158.726609,0.00055342,120]
[358399497,1745067070646,-500.0,0.00055342,120]
[358399498,1745067070656,-151.0,0.00055342,120]
[358399499,1745067070665,-500.0,0.00055342,120]
[358399500,1745067070674,-500.0,0.00055342,2]
[358399501,1745067070685,-151.0,0.00055342,120]
[358399502,1745067070694,-500.0,0.00055342,2]
[358399503,1745067070703,-500.0,0.00055342,2]
[358399504,1745067070712,-151.0,0.00055342,120]
[358399505,1745067070721,-500.0,0.00055342,2]
[358399506,1745067070730,-153.444203,0.00055342,120]
[358399507,1745067070740,-162.257349,0.00055342,120]
[358399508,1745067070749,-162.257349,0.00055342,120]
[358399509,1745067070759,-593.97,0.00055342,120]
[358399510,1745067070768,-151.0,0.00055342,120]
[358399511,1745067070777,-151.0,0.00055342,120]
[358399512,1745067070786,-805.36,0.00055342,2]
[358399513,1745067070795,-500.0,0.00055668,120]
[358399514,1745067070805,-200.0,0.000557,103]
[358399515,1745067070815,-500.0,0.0005589,2]
[358399516,1745067070824,-525.76878476,0.0005589,120]
[358399517,1745067070833,-520.378,0.0005589,120]
[358399518,1745067070843,-500.0,0.0005589,120]
[358399519,1745067070851,-500.0,0.0005589,120]
[358399520,1745067070861,-500.0,0.0005589,120]
[358399521,1745067070870,-500.0,0.0005589,120]
[358399522,1745067070879,-200.25205535,0.0005589,120]
[358399523,1745067070888,-500.0,0.0005589,120]
[358399524,1745067070897,-365.62701259,0.0005589,120]
[358399525,1745067070907,-500.0,0.0005589,120]
[358399526,1745067070916,-500.0,0.0005589,120]
[358399527,1745067070926,-697.66,0.0005589,120]
[358399528,1745067070935,-500.0,0.0005589,120]
[358399529,1745067070944,-500.0,0.0005589,120]
[358399530,1745067070953,-500.0,0.0005589,120]
[358399531,1745067070963,-502.71976378,0.0005589,120]
[358399532,1745067070973,-1104.31,0.0005589,120]
[358399533,1745067070982,-511.01950307,0.0005589,2]
[358399534,1745067070991,-1000.0,0.0005589,35]
[358399535,1745067071001,-2116.35,0.0005589,12]
[358399536,1745067071010,-839.05,0.0005589,120]
[358399537,1745067071019,-574.5,0.0005589,120]
[358399538,1745067071029,-228.1017852,0.0005589,120]
[358399539,1745067071038,-500.0,0.0005589,120]
[358399540,1745067071047,-500.0,0.0005589,120]
[358399541,1745067071057,-500.0,0.0005589,120]
[358399542,1745067071066,-100793.89,0.0005589,120]
[358399543,1745067071075,-500.0,0.0005589,2]
[358399544,1745067071084,-12120.55,0.0005589,2]
[358399545,1745067071094,-500.0,0.0005589,120]
[358399546,1745067071103,-500.0,0.0005589,120]
[358399547,1745067071112,-500.0,0.0005589,120]
[358399548,1745067071121,-500.0,0.0005589,120]
[358399549,1745067071131,-499.999997,0.0005589,120]
[358399550,1745067071140,-500.0,0.0005589,2]
[358399551,1745067071149,-499.60318265,0.0005589,2]
[358399552,1745067071159,-500.0,0.0005589,2]
[358399553,1745067071168,-500.0,0.0005589,2]
[358399554,1745067071177,-593.97,0.0005589,120]
[358399555,1745067071186,-805.36,0.0005589,2]
[358399556,1745067071195,-200.0,0.00055895,15]
[358399557,1745067071205,-2961.52,0.000559,60]
[358399558,1745067071214,-2700.0,0.00055904,120]
[358399559,1745067071223,-220.0,0.00056,120]
[358399560,1745067071233,-250.0,0.00056,5]
[358399561,1745067071243,-150.0,0.00056164,120]
[358399562,1745067071252,-500.0,0.00056325,120]
[358399563,1745067071262,-500.0,0.00056438,2]
[358399564,1745067071271,-500.0,0.00056438,120]
[358399565,1745067071280,-500.0,0.00056438,120]
[358399566,1745067071289,-500.0,0.00056438,120]
[358399567,1745067071299,-500.0,0.00056438,120]
[358399568,1745067071308,-500.0,0.00056438,120]
[358399569,1745067071317,-500.0,0.00056438,120]
[358399570,1745067071326,-500.0,0.00056438,120]
[358399571,1745067071335,-697.66,0.00056438,120]
[358399572,1745067071345,-500.0,0.00056438,120]
[358399573,1745067071354,-500.0,0.00056438,120]
[358399574,1745067071364,-500.0,0.00056438,120]
[358399575,1745067071374,-1104.31,0.00056438,120]
[358399576,1745067071383,-1000.0,0.00056438,35]
[358399577,1745067071393,-2116.35,0.00056438,12]
[358399578,1745067071402,-839.05,0.00056438,120]
[358399579,1745067071411,-574.5,0.00056438,120]
[358399580,1745067071420,-494.527975,0.00056438,120]
[358399581,1745067071430,-500.0,0.00056438,120]
[358399582,1745067071439,-500.0,0.00056438,120]
[358399583,1745067071448,-100793.89,0.00056438,120]
[358399584,1745067071458,-500.0,0.00056438,2]
[358399585,1745067071468,-12120.55,0.00056438,2]
[358399586,1745067071477,-500.0,0.00056438,120]
[358399587,1745067071487,-518.89568332,0.00056438,120]
[358399588,1745067071496,-500.0,0.00056438,120]
[358399589,1745067071505,-500.0,0.00056438,120]
[358399590,1745067071514,-500.0,0.00056438,2]
[358399591,1745067071523,-521.47546021,0.00056438,2]
[358399592,1745067071532,-500.0,0.00056438,2]
[358399593,1745067071542,-593.97,0.00056438,120]
[358399594,1745067071551,-805.36,0.00056438,2]
[358399595,1745067071560,-500.0,0.00056543,120]
[358399596,1745067071570,-1032.47397193,0.0005666,120]
[358399597,1745067071579,-18656.63,0.000567,2]
[358399598,1745067071589,-200.0,0.000567,107]
[358399599,1745067071600,-500.0,0.00056746,120]
[358399600,1745067071610,-1134.35,0.00056798,2]
[358399601,1745067071619,-800.0,0.00056876,120]
[358399602,1745067071628,-3000.0,0.0005689,35]
[358399603,1745067071637,-512.93062817,0.00056986,2]
[358399604,1745067071646,-500.0,0.00056986,120]
[358399605,1745067071655,-500.0,0.00056986,120]
[358399606,1745067071664,-500.0,0.00056986,120]
[358399607,1745067071674,-500.0,0.00056986,120]
[358399608,1745067071684,-500.0,0.00056986,120]
[358399609,1745067071693,-614.1199808,0.00056986,120]
[358399610,1745067071702,-455.64091376,0.00056986,120]
[358399611,1745067071711,-697.66,0.00056986,120]
[358399612,1745067071720,-500.0,0.00056986,120]
[358399613,1745067071729,-500.0,0.00056986,120]
[358399614,1745067071738,-500.0,0.00056986,120]
[358399615,1745067071748,-1104.31,0.00056986,120]
[358399616,1745067071757,-1000.0,0.00056986,35]
[358399617,1745067071767,-2116.35,0.00056986,12]
[358399618,1745067071777,-839.05,0.00056986,120]
[358399619,1745067071786,-574.5,0.00056986,120]
[358399620,1745067071796,-500.0,0.00056986,120]
[358399621,1745067071805,-500.0,0.00056986,120]
[358399622,1745067071815,-100793.89,0.00056986,120]
[358399623,1745067071823,-207.03707078,0.00056986,2]
[358399624,1745067071833,-12120.55,0.00056986,2]
[358399625,1745067071842,-500.0,0.00056986,120]
[358399626,1745067071852,-500.0,0.00056986,120]
[358399627,1745067071862,-500.0,0.00056986,120]
[358399628,1745067071871,-500.0,0.00056986,2]
[358399629,1745067071881,-500.0,0.00056986,2]
[358399630,1745067071890,-593.97,0.00056986,120]
[358399631,1745067071899,-805.36,0.00056986,2]
[358399632,1745067071909,-250.0,0.00057,20]
[358399633,1745067071919,-1250.0,0.00057,2]
[358399634,1745067071928,-150.0,0.00057047,120]
[358399635,1745067071937,-500.0,0.00057278,120]
[358399636,1745067071947,-660.58267213,0.00057335,2]
[358399637,1745067071957,-2700.0,0.00057358,120]
[358399638,1745067071966,-6198.0,0.00057444,10]
[358399639,1745067071975,-1116.91,0.00057515,30]
[358399640,1745067071985,-152.67,0.00057515,30]
[358399641,1745067071995,-500.0,0.00057534,120]
[358399642,1745067072005,-500.0,0.00057534,120]
[358399643,1745067072015,-500.0,0.00057534,120]
[358399644,1745067072024,-500.0,0.00057534,120]
[358399645,1745067072034,-150.0,0.00057534,120]
[358399646,1745067072043,-500.0,0.00057534,120]
[358399647,1745067072053,-697.66,0.00057534,120]
[358399648,1745067072063,-500.0,0.00057534,120]
[358399649,1745067072072,-500.0,0.00057534,120]
[358399650,1745067072081,-500.0,0.00057534,120]
[358399651,1745067072189,-1104.31,0.00057534,120]
[358399652,1745067072199,-1000.0,0.00057534,35]
[358399653,1745067072209,-2116.35,0.00057534,12]
[358399654,1745067072219,-839.05,0.00057534,120]
[358399655,1745067072229,-574.5,0.00057534,120]
[358399656,1745067072238,-500.0,0.00057534,120]
[358399657,1745067072247,-500.0,0.00057534,120]
[358399658,1745067072257,-100793.89,0.00057534,120]
[358399659,1745067072266,-12120.55,0.00057534,2]
[358399660,1745067072276,-500.0,0.00057534,120]
[358399661,1745067072285,-500.0,0.00057534,120]
[358399662,1745067072295,-500.0,0.00057534,120]
[358399663,1745067072305,-500.0,0.00057534,2]
[358399664,1745067072314,-600.0,0.00057534,2]
[358399665,1745067072323,-593.97,0.00057534,120]
[358399666,1745067072333,-805.36,0.00057534,2]
[358399667,1745067072343,-1386.97,0.00057534,120]
[358399668,1745067072352,-151.0,0.00057534,120]
[358399669,1745067072362,-151.0,0.00057534,120]
[358399670,1745067072372,-151.0,0.00057534,120]
[358399671,1745067072382,-151.0,0.00057534,120]
[358399672,1745067072391,-209.202458,0.00057534,120]
[358399673,1745067072401,-1069.0,0.00057535,120]
[358399674,1745067072411,-200.0,0.00057535,14]
[358399675,1745067072421,-200.0,0.00057535,14]
[358399676,1745067072431,-800.0,0.0005758,120]
[358399677,1745067072440,-150.0,0.000576,30]
[358399678,1745067072450,-500.0,0.00057652,120]
[358399679,1745067072460,-200.0,0.000577,111]
[358399680,1745067072469,-150.0,0.00057774,120]
[358399681,1745067072480,-500.0,0.00057822,120]
[358399682,1745067072489,-2700.0,0.00057959,120]
[358399683,1745067072498,-500.0,0.00057963,120]
[358399684,1745067072508,-500.0,0.00057994,120]
[358399685,1745067072517,-311.64941182,0.00058,120]
[358399686,1745067072526,-220.0,0.00058,120]
[358399687,1745067072536,-662.11322002,0.00058,120]
[358399688,1745067072546,-250.0,0.00058,20]
[358399689,1745067072556,-165.0,0.00058,120]
[358399690,1745067072567,-2961.52,0.00058,60]
[358399691,1745067072578,-49828.45967091,0.0005805,2]
[358399692,1745067072588,-500.0,0.00058082,120]
[358399693,1745067072600,-500.0,0.00058082,120]
[358399694,1745067072613,-500.0,0.00058082,120]
[358399695,1745067072623,-500.0,0.00058082,120]
[358399696,1745067072632,-500.0,0.00058082,120]
[358399697,1745067072641,-697.66,0.00058082,120]
[358399698,1745067072651,-500.0,0.00058082,120]
[358399699,1745067072660,-500.0,0.00058082,120]
[358399700,1745067072669,-500.0,0.00058082,120]
[358399701,1745067072679,-1104.31,0.00058082,120]
[358399702,1745067072689,-245.21486064,0.00058082,35]
[358399703,1745067072699,-2116.35,0.00058082,12]
[358399704,1745067072708,-839.05,0.00058082,120]
[358399705,1745067072717,-574.5,0.00058082,120]
[358399706,1745067072727,-500.0,0.00058082,120]
[358399707,1745067072736,-500.0,0.00058082,120]
[358399708,1745067072746,-100793.89,0.00058082,120]
[358399709,1745067072755,-12120.55,0.00058082,2]
[358399710,1745067072765,-500.0,0.00058082,120]
[358399711,1745067072774,-500.0,0.00058082,120]
[358399712,1745067072783,-500.0,0.00058082,120]
[358399713,1745067072792,-500.0,0.00058082,2]
[358399714,1745067072802,-593.97,0.00058082,120]
[358399715,1745067072812,-805.36,0.00058082,2]
[358399716,1745067072822,-500.0,0.00058184,120]
[358399717,1745067072831,-500.0,0.00058304,120]
[358399718,1745067072840,-2700.0,0.00058392,120]
[358399719,1745067072850,-440.0,0.00058466,2]
[358399720,1745067072859,-500.0,0.00058517,120]
[358399721,1745067072868,-277.08167478,0.0005863,120]
[358399722,1745067072877,-500.0,0.0005863,120]
[358399723,1745067072887,-500.0,0.0005863,120]
[358399724,1745067072896,-500.0,0.0005863,120]
[358399725,1745067072905,-500.0,0.0005863,120]
[358399726,1745067072914,-697.66,0.0005863,120]
[358399727,1745067072924,-500.0,0.0005863,120]
[358399728,1745067072933,-500.0,0.0005863,120]
[358399729,1745067072942,-500.0,0.0005863,120]
[358399730,1745067072952,-1104.31,0.0005863,120]
[358399731,1745067072963,-2116.35,0.0005863,12]
[358399732,1745067072972,-839.05,0.0005863,120]
[358399733,1745067072981,-574.5,0.0005863,120]
[358399734,1745067072990,-277.37334166,0.0005863,120]
[358399735,1745067072999,-500.0,0.0005863,120]
[358399736,1745067073008,-100793.89,0.0005863,120]
[358399737,1745067073018,-12120.55,0.0005863,2]
[358399738,1745067073028,-500.0,0.0005863,120]
[358399739,1745067073045,-500.0,0.0005863,120]
[358399740,1745067073057,-500.0,0.0005863,120]